Cogmind - Beta 14 @@@ ROGUE MODE // 2025.03.17 @ 10:28:52 Player: Lava Result: Self-destructed Performance ------------- Evolutions (2) 1000 Regions Visited (4) 800 Robots Destroyed (55) 275 Value Destroyed (1177) 1177 Prototype IDs (3) 60 Alien Tech Used (0) 0 Bonus (63) 63 TOTAL SCORE: 3375 Bonus ------- High Alert Combat Kills 87 Follower Combat Kills 175 Friendly Fire -199 Cogmind --------- Core Integrity 339/550 Matter 261/300 Energy 140/140 System Corruption 0% Temperature Cool (11) Movement Flying (26) Location -8/Materials Parts ------- > --- POWER (1) -------- Light Deuterium Engine > --- PROPULSION (4) --- VTOL Module Improved VTOL Module Improved VTOL Module Improved VTOL Module > --- UTILITY (4) ------ Medium Storage Unit Improved Sensor Array Improved Signal Interpreter > --- WEAPON (2) ------- Heavy Assault Rifle > --- INVENTORY (10) --- Light Nuclear Core VTOL Module Signal Interpreter Improved Terrain Scanner Terrain Scan Processor Reaction Control System Improved Light Armor Plating Hacking Suite Heavy Rocket Launcher Heavy Flail Peak State ------------ > --- POWER ------------ Light Nuclear Core > --- PROPULSION ------- VTOL Module Improved VTOL Module Improved VTOL Module Improved VTOL Module > --- UTILITY ---------- Medium Storage Unit Weight Redist. System Improved Sensor Array Improved Signal Interpreter > --- WEAPON ----------- Lightning Gun Light Assault Rifle > --- INVENTORY -------- Light Ion Engine VTOL Module Signal Interpreter Improved Terrain Scanner Terrain Scan Processor Improved Light Armor Plating Hacking Suite Heavy Assault Rifle Heavy Rocket Launcher Heavy Flail [Rating: 33] Favorites ----------- Power Light Ion Engine Engine Light Ion Engine Power Core Light Nuclear Core Propulsion Light Treads Treads Light Treads Flight Unit Improved VTOL Module Utility Signal Interpreter Device Sensor Array Storage Large Storage Unit Processor Signal Interpreter Hackware Hacking Suite Protection Light Armor Plating Weapon Light Assault Rifle Energy Gun Lightning Gun Ballistic Gun Light Assault Rifle Launcher Heavy Rocket Launcher Impact Weapon Heavy Flail Build | -11 -10 -10 -9 -8 ------- Run | Yrd Mat Min Mat Mat Slots Evolved 4 | . . . 2 2 Power . | . . . . . Propulsion 2 | . . . . 2 Utility 2 | . . . 2 . Weapon . | . . . . . Parts Attached 53 | 7 5 3 16 22 Power 8 | 1 . 1 2 4 Engine 7 | 1 . 1 2 3 Core 1 | . . . . 1 Reactor . | . . . . . Propulsion 13 | 2 . 1 6 4 Treads 9 | 2 . 1 6 . Leg . | . . . . . Wheel . | . . . . . Hover . | . . . . . Flight 4 | . . . . 4 Utility 10 | 1 2 . 3 4 Device 3 | . . . 1 2 Storage 3 | 1 1 . . 1 Processor 2 | . 1 . . 1 Hackware 1 | . . . 1 . Protection 1 | . . . 1 . Artifact . | . . . . . Weapon 22 | 3 3 1 5 10 Energy Gun 3 | 1 . . . 2 Energy Cannon . | . . . . . Ballistic Gun 14 | 2 3 1 5 3 Ballistic Cannon . | . . . . . Launcher 2 | . . . . 2 Special Weapon . | . . . . . Impact Weapon 3 | . . . . 3 Slashing Weapon . | . . . . . Piercing Weapon . | . . . . . Special Melee Weapon . | . . . . . Unidentified Prototypes . | . . . . . Parts Lost 6 | . 1 1 . 4 Power 1 | . . . . 1 Propulsion 1 | . . 1 . . Utility 2 | . . . . 2 Weapon 2 | . 1 . . 1 Highest Loss Streak 2 | . 1 1 . 2 To Critical Strikes . | . . . . . Average Slot Usage (%) 99 | . 99 99 99 96 Engine 12 | . 14 14 11 5 Treads 22 | . 28 27 21 . Flight 3 | . . . . 35 Device 5 | . . . 11 14 Storage 12 | . 14 14 11 9 Processor 12 | . 13 14 11 9 Hackware 3 | . . . 8 3 Ballistic Gun 24 | . 27 28 21 11 Peak Build Rating 33 | 6 8 9 17 33 Average Rating 12 | 4 7 8 15 29 On Entrance 8 | . 6 8 9 17 Naked Turns . | . . . . . Heaviest Build 30 | 14 29 28 30 24 Greatest Support 46 | 40 40 40 46 25 Greatest Overweight (x) 7 | . . 1 7 1 Average Overweight (x) . | . . . . . Largest Inventory Capacity 15 | 8 15 15 15 15 Average Capacity 14 | 6 14 15 15 10 Most Carried 15 | 6 15 15 15 14 Average Carried 13 | 4 12 14 14 9 Final Capacity 15 | 8 15 15 15 10 Final Carried 15 | 6 15 15 15 10 Class Distribution -------------------- 63% | Mutant 29% | Scavenger-Mutant 4% | Sprinter Dominant Class ---------------- Mutant | -10/Materials Mutant | -10/Mines Scavenger-Mutant | -9/Materials Sprinter | -8/Materials Resources | -11 -10 -10 -9 -8 ----------- Run | Yrd Mat Min Mat Mat Matter Collected 1273 | 207 256 113 241 456 Remotely . | . . . . . Salvage Created 1456 | . 269 137 297 753 Parts 104 | . 30 3 20 51 Haulers Intercepted 2 | . 1 . . 1 Recyclers Shooed 3 | . 1 . . 2 Parts Field Recycled . | . . . . . Retrieved Matter . | . . . . . Parts Self-Destructed . | . . . . . Prevented . | . . . . . Kills | -11 -10 -10 -9 -8 ------- Run | Yrd Mat Min Mat Mat Combat Hostiles Destroyed 37 | . 9 5 7 16 Guns 26 | . 9 4 7 6 AOE 11 | . . 1 . 10 Classes Destroyed 11 | . 4 3 2 2 Worker 3 | . . . . 3 Builder 6 | . 1 . . 5 Hauler 2 | . 1 . . 1 Recycler 2 | . . 1 1 . Watcher 8 | . 3 . 2 3 Swarmer 16 | . 9 . 3 4 Grunt 13 | . . . 3 10 Brawler 2 | . . . . 2 Sentry 2 | . . . 1 1 Demolisher 1 | . . 1 . . Assembled 4 | . . 4 . . Best Kill Streak 20 | . 4 1 3 20 Combat Bots Only 12 | . 3 1 2 12 Max Kills in Single Turn 3 | . 1 1 1 3 Gunslinging . | . . . . . Exploded 2 | . . 1 . 2 Melee . | . . . . . Uniques/NPCs Destroyed . | . . . . . Combat | -11 -10 -10 -9 -8 -------- Run | Yrd Mat Min Mat Mat Hostile Shots Fired 161 | . 45 19 33 64 Missed 45 | . 6 3 8 28 Damage Taken 1856 | . 316 390 330 820 Core 447 | . 39 144 53 211 Absorbed by Shields . | . . . . . Core Remaining (%) 70 | 100 . 26 86 . Volleys Fired 144 | . 31 22 38 53 Largest 2 | . 2 2 2 2 Hottest 75 | . 40 40 43 75 Shots Fired 259 | . 61 44 76 78 Gun 246 | . 61 44 76 65 Cannon . | . . . . . Launcher 13 | . . . . 13 Special . | . . . . . Kinetic 231 | . 61 44 76 50 Thermal . | . . . . . Explosive 13 | . . . . 13 Electromagnetic 15 | . . . . 15 Robot Hit Streak 8 | . 7 8 6 7 Robot Miss Streak 8 | . 8 5 4 4 Penetration Max . | . . . . . Secondary Targets 3 | . . 1 1 1 Max Gunslinging Chain 1 | . . 1 1 1 Shots Hit Robots 143 | . 33 24 43 43 Core Hits 99 | . 19 8 22 50 Critical Kills . | . . . . . Critical Parts Destroyed . | . . . . . Critical Strikes . | . . . . . Melee Attacks 10 | . . . . 10 Impact 10 | . . . . 10 Slashing . | . . . . . Piercing . | . . . . . Sneak Attacks . | . . . . . Combat Hostiles . | . . . . . Follow-up Attacks . | . . . . . Damage Inflicted 3315 | . 416 261 460 2178 Guns 1660 | . 404 250 451 555 Cannons . | . . . . . Explosions 1623 | . . . . 1623 Melee . | . . . . . Ramming 32 | . 12 11 9 . Kinetic 1403 | . 404 250 451 298 Thermal . | . . . . . Explosive 1623 | . . . . 1623 Electromagnetic 257 | . . . . 257 Impact . | . . . . . Slashing . | . . . . . Piercing . | . . . . . Highest Corruption . | . . . . . Average Corruption . | . . . . . Corruption Purged . | . . . . . Corruption Blocked . | . . . . . Overload Shots . | . . . . . Overflow Damage 28 | . . . . 28 Projectiles . | . . . . . Explosions 28 | . . . . 28 Melee . | . . . . . Knockbacks . | . . . . . Impact . | . . . . . Kinetic . | . . . . . Secondary . | . . . . . Self-Inflicted Damage . | . . . . . Shots . | . . . . . Rammed 8 | . 3 3 2 . Targets Rammed 8 | . 3 3 2 . Kicked . | . . . . . Crushed . | . . . . . Highest Temperature 145 | . . 40 27 145 Average Temperature 48 | . . 21 9 56 Received Heat Transfer 578 | . . 140 150 288 Siege Activations . | . . . . . Robots Corrupted . | . . . . . Combat Hostiles . | . . . . . Parts Fried . | . . . . . Impact Corruptions . | . . . . . Robots Melted . | . . . . . Combat Hostiles . | . . . . . Parts Melted . | . . . . . Heat Transferred . | . . . . . Parts Sabotaged . | . . . . . Parts Stolen . | . . . . . Parts Stripped . | . . . . . Power Chain Reactions . | . . . . . Alert | -11 -10 -10 -9 -8 ------- Run | Yrd Mat Min Mat Mat Peak Influence 785 | . 242 58 322 785 Initial 38 | . . 38 . 11 Average 110 | . 88 18 102 452 Maximum Alert Level 3 | . 1 . 1 3 Low Security (%) 84 | 100 87 100 86 28 Level 1 8 | . 12 . 13 6 Level 2 3 | . . . . 29 Level 3 3 | . . . . 35 Level 4 . | . . . . . Level 5 . | . . . . . High Security . | . . . . . Max Security . | . . . . . Squads Dispatched 6 | . . . 3 3 Investigation 2 | . . . 2 . Extermination . | . . . . . Reinforcement 2 | . . . 1 1 Assault 2 | . . . . 2 Garrison . | . . . . . Intercept . | . . . . . Searches Triggered . | . . . . . Construction Impeded 1 | . . . . 1 Haulers Reinforced . | . . . . . Active Scanning Responses . | . . . . . Cargo Convoy Interrupts . | . . . . . Stealth | -11 -10 -10 -9 -8 --------- Run | Yrd Mat Min Mat Mat Distress Signals 7 | . . . 2 5 Communications Jammed . | . . . . . Distress Signals . | . . . . . Times Spotted 78 | . 15 5 27 31 Peak Tracking Total 9 | . 4 2 5 9 Tactical Retreats 4 | . 1 1 . 2 Traps | -11 -10 -10 -9 -8 ------- Run | Yrd Mat Min Mat Mat Traps Triggered 5 | . . . 5 . Indirectly . | . . . . . Trap Hack Attempts . | . . . . . Triggered . | . . . . . Disarmed 3 | . 3 . . . Reprogrammed . | . . . . . Reused . | . . . . . Traps Extracted . | . . . . . Installed . | . . . . . Triggered . | . . . . . Machines | -11 -10 -10 -9 -8 ---------- Run | Yrd Mat Min Mat Mat Machines Disabled 6 | . . . . 6 Max in Single Turn 2 | . . . . 2 Machines Repaired . | . . . . . Machines Dismantled . | . . . . . Machines Sabotaged . | . . . . . Overloaded Fab Kills . | . . . . . Hacking | -11 -10 -10 -9 -8 --------- Run | Yrd Mat Min Mat Mat Machines Accessed 13 | . 3 1 5 4 Terminals 10 | . 3 . 4 3 Fabricators . | . . . . . Repair Stations . | . . . . . Recycling Units . | . . . . . Scanalyzers 1 | . . . 1 . Garrison Access 1 | . . . . 1 Total Hacks 26 | . 9 1 9 7 Successful 12 | . 4 1 4 3 Failed 14 | . 5 . 5 4 Catastrophic 4 | . . . 4 . Database Lockouts . | . . . . . Manual 6 | . 1 . 4 1 Terminals 20 | . 9 . 6 5 Fabricators . | . . . . . Repair Stations . | . . . . . Recycling Units . | . . . . . Scanalyzers 3 | . . . 3 . Garrison Access 2 | . . . . 2 Terminal Hacks 9 | . 4 1 1 3 Prototype ID Bank 1 | . . . . 1 Open Door 1 | . . 1 . . Terminal Index 1 | . 1 . . . Locate Traps 1 | . . . . 1 Disarm Traps 1 | . 1 . . . Dispatch Records 1 | . 1 . . . Recall Investigation 1 | . . . 1 . Registered Prototypes 1 | . . . . 1 Zone Layout 1 | . 1 . . . Fabricator Hacks . | . . . . . Repair Station Hacks . | . . . . . Recycling Unit Hacks . | . . . . . Scanalyzer 3 | . . . 3 . Insert Component 2 | . . . 2 . Analyze 1 | . . . 1 . Garrison Access Hacks . | . . . . . Unauthorized Hacks . | . . . . . Terminals . | . . . . . Fabricators . | . . . . . Repair Stations . | . . . . . Recycling Units . | . . . . . Scanalyzers . | . . . . . Garrison Access . | . . . . . Data Cores Recovered 1 | . . . 1 . Used . | . . . . . Hacking Detections 10 | . 3 . 4 3 Full Trace Events 1 | . . . 1 . Feedback Events . | . . . . . Feedback Blocked . | . . . . . Robot Schematics Acquired . | . . . . . Robots Built . | . . . . . Authchips . | . . . . . Time . | . . . . . Total Robot Build Rating . | . . . . . Part Schematics Acquired 1 | . . . 1 . Parts Built . | . . . . . Authchips . | . . . . . Time . | . . . . . Total Part Build Rating . | . . . . . Parts Repaired . | . . . . . Time . | . . . . . Parts Recycled . | . . . . . Recycled Matter . | . . . . . Retrieved Matter . | . . . . . Retrieved Components . | . . . . . Parts Scanalyzed 1 | . . . 1 . Part Schematics Acquired 1 | . . . 1 . Parts Damaged . | . . . . . Bothacking | -11 -10 -10 -9 -8 ------------ Run | Yrd Mat Min Mat Mat Used RIF Installer . | . . . . . Robots Hacked . | . . . . . Non-combat . | . . . . . Combat . | . . . . . Robot Hacks Applied . | . . . . . Relay Couplers Released . | . . . . . Fabnet Peak Effective % . | . . . . . Robots Rewired . | . . . . . Allies Hacked . | . . . . . Hacks Repelled . | . . . . . Allies | -11 -10 -10 -9 -8 -------- Run | Yrd Mat Min Mat Mat Total Allies 4 | . . 4 . . Largest Group 4 | . . 4 4 1 Highest-Rated Group 71 | . . 71 71 16 Highest-Rated Ally 31 | . . 31 31 16 Total Orders . | . . . . . Ally Attacks 64 | . . . 47 17 Total Damage 670 | . . . 493 177 Kills 10 | . . . 8 2 Allies Corrupted . | . . . . . Allies Melted . | . . . . . Intel | -11 -10 -10 -9 -8 ------- Run | Yrd Mat Min Mat Mat Robot Analysis Total . | . . . . . Derelict Logs Recovered 1 | . . 1 . . Drone Launches . | . . . . . Drone Recoveries . | . . . . . Exploration | -11 -10 -10 -9 -8 ------------- Run | Yrd Mat Min Mat Mat Turns Passed 4003 | 76 1065 1100 1346 416 Spaces Moved 2692 | 39 586 618 728 721 Core 5 | 4 . . 1 . Treads 1966 | 35 586 618 727 . Legs . | . . . . . Wheels . | . . . . . Hover . | . . . . . Flight 721 | . . . . 721 Fastest Speed 26 | 50 160 160 160 26 Average Speed 124 | 148 160 161 160 26 Slowest Speed 400 | 160 160 240 400 98 Overloaded Moves . | . . . . . Propulsion Burnouts . | . . . . . Robots Hopped 8 | . . . . 8 Cave-ins Triggered 1 | . . . . 1 Exploration Rate (%) 61 | 3 79 99 61 63 Regions Visited 4 Branch Regions 1 Pre-discovered Areas 1 | . . 1 . . Known Exits Taken 3 | . 1 1 1 . Unknown Exits Taken 1 | 1 . . . . Scrap Searched 1 | . . 1 . . Spaces Dug 10 | . . . . 10 Terrain Destroyed 75 | . . . . 75 Melee 10 | . . . . 10 Projectile . | . . . . . AOE 65 | . . . . 65 Terrain Rammed . | . . . . . Walls Destroyed . | . . . . . Machines Disabled . | . . . . . Actions | -11 -10 -10 -9 -8 --------- Run | Yrd Mat Min Mat Mat Total 3086 | 56 656 681 840 853 Wait 107 | . 8 30 37 32 Move 2672 | 38 585 617 727 705 Hop 8 | . . . . 8 Pick Up 47 | 11 16 3 9 8 Fast Attach 11 | 1 1 . 8 1 Attach 15 | 5 1 1 2 6 Detach 2 | . . . . 2 Swap 27 | 1 3 2 6 15 Drop 35 | . 8 3 11 13 Fire 144 | . 31 22 38 53 Melee 10 | . . . . 10 Ram . | . . . . . Kick . | . . . . . Crush 8 | . 3 3 2 . Escape Stasis . | . . . . . Rewire . | . . . . . Trap . | . . . . . Miscellaneous . | . . . . . Route ------- -11/Scrapyard -10/Materials (discovered 3 exits: *Mat x2 / *Min) -10/Mines (discovered 3 exits: *Mat x2 / *Sub) -9/Materials (discovered 3 exits: *Mat x2 / [*Min]) -8/Materials History --------- Turn | Location | Event 2 | -11/Scrapyard | Met Revision 17 17 | -11/Scrapyard | Discovered new exit (range 15) 77 | -11/Scrapyard | Entered Materials 303 | -10/Materials | Build established: Mutant 350 | -10/Materials | Discovered new exit (range 9) 810 | -10/Materials | Discovered new exit (range 7) 946 | -10/Materials | Discovered new exit (range 14) 1140 | -10/Materials | Identified exit to Mines 1142 | -10/Materials | Entered Mines 1159 | -10/Mines | Assembled infested the area 1164 | -10/Mines | Assisted by a Guerilla fighting off Assembled 1166 | -10/Mines | Learned location of Storage (-7) 1339 | -10/Mines | Core integrity fell below 50% 1456 | -10/Mines | Discovered new exit (range 10) 1482 | -10/Mines | Identified exit to Materials 1591 | -10/Mines | Discovered new exit (range 6) 1598 | -10/Mines | Identified exit to Subcaves 1714 | -10/Mines | Assisted by bots powering up and referring to "LRC-V3" 1878 | -10/Mines | Met a Derelict who couldn't figure out how to use a Trap Extractor 2192 | -10/Mines | Received a Mining Laser from a helpful Derelict 2196 | -10/Mines | Discovered exit to Materials (range 10) 2242 | -10/Mines | Entered Materials 2242 | -9/Materials | Accompanied by 4 allies 2242 | -9/Materials | Evolved 2 slots: Utility x2 2833 | -9/Materials | Discovered new exit (range 14) 2850 | -9/Materials | Build established: Scavenger-Mutant 3269 | -9/Materials | Discovered new exit (range 15) 3333 | -9/Materials | Identified exit to Materials 3566 | -9/Materials | Discovered exit to Materials (range 13) 3588 | -9/Materials | Entered another Materials area 3588 | -8/Materials | Accompanied by 1 ally 3588 | -8/Materials | Evolved 2 slots: Propulsion x2 3769 | -8/Materials | Destroyed 12 combat bots 3987 | -8/Materials | Crushed by falling debris 3988 | -8/Materials | First assault squad dispatched 4004 | -8/Materials | Self-destructed Last Messages --------------- Acquired Field Laser. Acquired 2 matter. Dropped Field Laser. K-01 Serf collects debris. U-05 Engineer lays Concrete. Dropped Lgt. Ion Engine. Dropped Lightning Gun. Acquired Reaction Control System. W-25 Informer sends out distress signal. W-25 Informer destroyed. Acquired 33 matter. T-07 Excavator is excavating. Connecting with Terminal... The unstable cave ceiling collapses. Crushed by falling debris. ALERT: Significant disruption in Zone 9X, multiple assault carriers dispatched. The unstable cave ceiling collapses. Weight Redist. System destroyed. Critical hit (Burn: +37). Map ----- +----------------------------------------------------+ | # #??????????# #???????# | | + #??????????# #???????# | | =%[!! # """ """ #???######## #???????# | | ## =% ####### """ """ #???#]][[]]# #???????# | | ? ??????# """ """ #???#]] [ ]# #???????# | | ? ###########+#####???# # #??????## | | ?# ####### ####+########## | | ?# | | ?# | | ?# * | | ?# ####################+### | | ?# """ #?????????????# ## | | ?# """ #?????????????# """" #? | | ?## u ! !#?????????????# """" #? | | # % = !! #?????????????# """" #? | | = = !! #?????????????# #? | | ## k = ###???????????# """ #? | | ??# # #???????????# G" #? | | ??# # #######???????????# """ #? | | ### ! ######?????????????????# #? | | # ##???????????????#####??##########? | | #################### ]#????????????? | | ^ k gr Y #????????????? | | ##+#########/####### #????????????? | | # !* ## #?#a##????????????? | | = # !* ##@ """ #?# #?????????????? | | = # ## r"Y" #?# #?????????????? | | "" " # "T" !## #?# #???########??? | | ############ #?# #???# """ #??? | | ## = # #?# #???# """ #??? | | """ """ ## = * !########?# #???#! """ #??? | | """ """ ## !! * #????????# #???# #### | | """ """ # #????????# #???# = " # | | """ """ + """ """ #???????##Y##??# !#### | | # """ """ #???????# #######/###### | | # """ """ #???????# | | """ """ # #???????# ### | | """ """ ###########???????#####?# | | """ """ #???????????????????????#! | | """ """ #?????????????########### | | #?????????????# # | | #?????????#???# ! # | | ######## ######????????? #### # | | #??????# #?###########?? ?+ """ + | | #??????# #?# #?# ?# """ " " # | | #??????# #?# """ """ ### ?# """ "R" # ###+ | | ######## ### """ """ ## ?+ """ # ## | | # # """ """ ## #?# ########## | | # + ## #########"###????????# | | # [ # ## # [ #??????????#! | +----------------------------------------------------+ Best States ------------- Heat Dissipation 31 Energy Generation 14 Energy Capacity 250 Matter Stores 300 Matter Capacity 300 Sight Range 16 Robot Scan Range 15 Terrain Scan Density 10 Additional Mass Support 6 Armor Coverage 150 Evasion (%) 64 Recoil Reduction 2 Offensive Hacking 10 Item Schematics ----------------- Imp. VTOL Module | -9/Materials | Scanalyzed Robot Schematics ------------------ None Fabricated ------------ Nothing Alien Tech Used ----------------- None Achievements -------------- None Challenges ------------ None Game ------ Seed IntegratedHeavyInterpreter Manual? 0 Play Time 00:39:22 Cumulative 18.8 hours Start 2025.03.17 @ 09:52:04 End 2025.03.17 @ 10:28:52 Sessions 1 Manual Loads 0 Difficulty Rogue Special Mode None Game No. 29 Rogue 29 Adventurer 0 Explorer 0 Win Type - Total 0 Types 0/0/0/0/0/0/0/0/0 Lore% 12 Gallery% 21 Achievement% 20 Wizard Run 0 Options --------- Layout 1 ASCII 0 Keyboard 0 Movement Mouse Keybinds 0 Fullscreen 1 Font 32/SmallcapsGlow Map View 50x40 Zoom Use 0% Tactical HUD 0 Map Filters NONE Filters NONE Steam 1 RUN: de26df6d-2c76-4176-b8e8-cb430f82d61c